bitfinex/quotes_SOLUSD_20241117
["timestamp","ask_amount","ask_price","bid_price","bid_amount"]
[1731815774451,2.78625,220.17,220.16,28.28717653]
[1731815774871,2.78625,220.17,220.16,23.74507653]
[1731815775576,2.78625,220.17,220.1,11.358]
[1731815775745,2.78625,220.17,220.05,29.44112815]
[1731815775746,2.78625,220.17,220.16,23.74507653]
[1731815777180,2.78625,220.17,220.14,4.5425]
[1731815777360,2.78625,220.17,220.11,11.3579]
[1731815777673,2.78625,220.17,220.15,23.74507653]
[1731815778061,2.78625,220.17,220.11,15.901]
[1731815778464,2.78625,220.17,220.16,23.83875115]
[1731815778977,2.78625,220.26,220.17,0.25098]
[1731815779286,2.78625,220.26,220.18,11.3543]
[1731815779575,2.78625,220.26,220.21,14.83527875]
[1731815779963,7.32645,220.26,220.21,14.83527875]
[1731815780155,2.78625,220.26,220.23,14.83527875]
[1731815781979,2.78625,220.26,220.25,14.83527875]
[1731815783278,2.78625,220.26,220.23,14.83527875]
[1731815783470,2.78625,220.26,220.25,14.83527875]
[1731815784162,2.78625,220.26,220.25,15.17993337]
[1731815784362,2.78625,220.26,220.19,0.25098]
[1731815784562,2.78625,220.26,220.24,14.83527875]
[1731815785367,2.78625,220.26,220.24,19.37557875]
[1731815786876,2.78625,220.26,220.25,0.34465462]
[1731815787181,2.78625,220.26,220.24,30.72677875]
[1731815788388,2.78625,220.26,220.25,0.34465462]
[1731815788675,1.58834367,220.26,220.25,0.34465462]
[1731815789655,1.58834367,220.26,220.24,15.8915]
[1731815790166,1.58834367,220.26,220.24,11.3512]
[1731815791064,1.58834367,220.26,220.24,15.8917]
[1731815792975,1.58834367,220.26,220.22,14.83527875]
[1731815793288,1.58834367,220.26,220.24,14.83527875]
[1731815793465,1.58834367,220.26,220.16,0.09367462]
[1731815793774,1.58834367,220.26,220.22,14.83527875]
[1731815794357,1.58834367,220.26,220.17,0.25098]
[1731815794566,1.58834367,220.26,220.2,14.83527875]
[1731815795470,1.58834367,220.26,220.24,14.83527875]
[1731815795675,1.58834367,220.26,220.25,4.5402]
[1731815795983,1.58834367,220.26,220.24,26.18637875]
[1731815796487,1.58834367,220.26,220.24,11.3511]
[1731815796663,1.58834367,220.26,220.22,19.37607875]
[1731815796862,1.58834367,220.26,220.22,14.83527875]
[1731815797161,1.58834367,220.26,220.21,4.541]
[1731815797467,1.58834367,220.26,220.22,14.83527875]
[1731815797780,1.58834367,220.26,220.24,14.83527875]
[1731815798895,1.58834367,220.26,220.25,0.34465462]
[1731815799561,0.34310792,220.26,220.25,0.34465462]
[1731815799885,0.34310792,220.26,220.25,4.88485462]
[1731815800690,0.34310792,220.26,220.25,4.5402]
[1731815801773,4.88320792,220.26,220.17,15.8965]
[1731815801978,0.34310792,220.26,220.21,14.83527875]
[1731815802960,0.34310792,220.26,220.22,4.5409]
[1731815803258,0.34310792,220.26,220.2,14.83527875]
[1731815804087,0.34310792,220.26,220.22,14.83527875]
[1731815804458,0.1,220.23,220.13,15.8991]
[1731815804786,4.98320792,220.26,220.06,4.53932644]
[1731815804787,14.93527875,220.16,220.06,4.53932644]
[1731815805089,0.1,220.12,220.07,14.83527875]
[1731815805255,0.1,220.12,219.97,15.9111]
[1731815805256,15.03527875,220.12,220.05,14.83527875]
[1731815805463,27.5414,220.08,219.97,21.43209826]
[1731815805681,27.5414,220.08,220.04,14.83527875]
[1731815806280,27.5414,220.08,220.06,14.83527875]
[1731815806775,27.5414,220.08,220.07,23.76806397]
[1731815807381,27.5414,220.08,220.06,23.76806397]
[1731815807573,27.5414,220.08,220.07,23.76806397]
[1731815807758,31.6359,220.14,220.07,23.76806397]
[1731815807960,27.0934,220.14,220.1,23.76806397]
[1731815809094,0.1,220.09,219.98,11.3642]
[1731815809282,31.6361,220.14,220.06,23.76806397]
[1731815809581,27.0934,220.14,220.08,23.76806397]
[1731815810166,4.5431,220.11,219.98,38.6393]
[1731815810368,50.86146397,220.14,220.06,23.76806397]
[1731815810781,27.0934,220.14,220.1,23.76806397]
[1731815811006,27.0934,220.14,220.11,0.09367462]
[1731815811207,27.0934,220.14,220.01,0.1]
[1731815811208,27.0934,220.2,220.13,23.76806397]
[1731815811369,27.0934,220.2,220.15,23.76806397]
[1731815812385,31.6349,220.2,220.13,23.76806397]
[1731815812587,23.76806397,220.19,220.11,35.12596397]
[1731815812793,31.6349,220.2,220.13,23.76806397]
[1731815813371,23.76806397,220.19,220.11,35.12596397]
[1731815814190,31.6349,220.2,220.13,23.76806397]
[1731815814677,0.34310792,220.26,220.2,0.25098]
[1731815814876,0.34310792,220.26,220.25,23.76806397]
[1731815815570,0.34310792,220.26,220.23,23.76806397]
[1731815816799,24.11117189,220.26,220.15,15.8981]
[1731815817002,24.11117189,220.26,220.17,23.76806397]
[1731815818479,23.76806397,220.24,220.16,0.21916462]
[1731815818798,23.76806397,220.24,220.17,4.5419]
[1731815819392,23.76806397,220.24,220.17,15.8967]
[1731815819787,23.76806397,220.24,220.17,39.66476397]
[1731815820300,23.76806397,220.24,220.17,35.12286397]
[1731815820509,23.76806397,220.22,220.13,23.76806397]
[1731815820679,23.76806397,220.22,220.13,28.31076397]
[1731815821005,23.76806397,220.22,220.14,0.09367462]
[1731815821376,23.76806397,220.22,220.15,23.76806397]
[1731815821789,26.4682,220.23,220.16,16.14838]
[1731815822581,26.4682,220.23,220.17,23.76806397]
[1731815822817,23.76806397,220.22,220.16,11.3553]
[1731815823299,23.76806397,220.22,220.13,23.76806397]
[1731815823507,23.76806397,220.22,220.12,4.5429]
[1731815823508,23.76806397,220.22,220.15,23.76806397]
[1731815823704,26.4682,220.23,220.17,23.76806397]
[1731815824005,0.34310792,220.26,220.21,0.12549]
[1731815824184,0.34310792,220.26,220.21,0.25098]
[1731815824884,0.34310792,220.26,220.23,0.25098]
[1731815825087,0.34310792,220.26,220.24,23.86173859]
[1731815825293,0.34310792,220.26,220.25,0.25098]
[1731815825883,0.34310792,220.26,220.25,4.79118]
[1731815826182,2.78625,220.34,220.3,0.1]
[1731815826378,10.1091,220.43,220.36,0.44465462]
[1731815826379,2.78625,220.43,220.36,0.44465462]
[1731815826601,2.78625,220.43,220.37,6.79194333]
[1731815826796,2.78625,220.43,220.42,24.01904397]
[1731815827182,2.78625,220.43,220.42,0.34465462]
[1731815827398,2.78625,220.43,220.42,24.11271859]
[1731815827902,2.78625,220.43,220.42,28.64941859]
[1731815828985,2.78625,220.43,220.42,28.55574397]
[1731815830112,2.78625,220.43,220.42,24.01904397]
[1731815830307,2.78625,220.43,220.42,30.6021091]
[1731815831685,2.78625,220.43,220.42,23.76806397]
[1731815832506,2.78625,220.43,220.42,30.57582261]
[1731815833207,2.78625,220.43,220.42,6.46310402]
[1731815833379,2.78625,220.43,220.38,23.76806397]
[1731815833783,2.78625,220.43,220.38,28.30556397]
[1731815834802,2.78625,220.43,220.41,23.76806397]
[1731815836410,2.78625,220.43,220.42,0.25098]
[1731815837403,2.78625,220.43,220.42,0.34465462]
[1731815838099,2.78625,220.43,220.42,24.11271859]
[1731815839516,2.78625,220.43,220.42,30.24020334]
[1731815840089,2.78625,220.43,220.42,54.01708734]
[1731815840714,2.78625,220.43,220.42,77.78515131]
[1731815841394,2.78625,220.43,220.42,54.01708734]
[1731815842311,1.350976,220.5,220.45,0.19367462]
[1731815842611,1.350976,220.5,220.49,23.86173859]
[1731815842805,1.350976,220.5,220.49,35.52119001]
[1731815844209,1.350976,220.5,220.49,35.64668001]
[1731815844411,1.350976,220.5,220.49,59.54905401]
[1731815844719,1.350976,220.5,220.49,67.77887397]
[1731815845011,1.350976,220.5,220.49,66.87219008]
[1731815845219,1.350976,220.5,220.49,59.54905401]
[1731815846513,2.78625,220.51,220.49,59.54905401]
[1731815846813,2.78625,220.51,220.5,38.45517]
[1731815847195,2.78625,220.51,220.5,31.13203393]
[1731815847398,2.78625,220.51,220.5,31.23203393]
[1731815847720,2.78625,220.51,220.5,62.42323397]
[1731815849006,23.76806397,220.67,220.54,0.09367462]
[1731815849197,23.76806397,220.67,220.52,23.776884]
[1731815849198,23.76806397,220.67,220.58,23.86173859]
[1731815850021,2.78625,220.68,220.58,23.86173859]
[1731815850222,23.76806397,220.67,220.58,23.86173859]
[1731815851022,23.76806397,220.67,220.58,52.42310259]
[1731815851401,2.78625,220.68,220.58,52.42310259]
[1731815851609,0.3984408,220.59,220.58,59.74623866]
[1731815852111,0.3984408,220.59,220.57,11.3341]
[1731815852318,0.3984408,220.59,220.57,15.8678]
[1731815852498,0.3984408,220.59,220.57,39.63586397]
[1731815852906,2.78625,220.68,220.59,82.7119]
[1731815853101,2.78625,220.68,220.67,23.76806397]
[1731815853320,2.78625,220.68,220.67,47.54494797]
[1731815853807,2.78625,220.68,220.67,47.63862259]
[1731815854019,2.78625,220.68,220.67,47.76411259]
[1731815854922,2.78625,220.68,220.67,47.88960259]
[1731815855124,2.78625,220.77,220.76,0.19367462]
[1731815855300,2.78625,220.77,220.76,47.88960259]
[1731815855507,2.78625,220.77,220.74,23.76806397]
[1731815855705,2.78625,220.77,220.7,23.76806397]
[1731815856225,7.31595,220.77,220.7,23.76806397]
[1731815856533,2.78625,220.77,220.7,23.76806397]
[1731815857127,28.2734,220.69,220.68,0.788]
[1731815857326,52.14146397,220.69,220.68,0.788]
[1731815857531,28.2734,220.69,220.68,0.788]
[1731815858408,52.14146397,220.69,220.68,0.788]
[1731815859117,52.04146397,220.69,220.68,0.788]
[1731815861032,4.6314,220.68,220.59,23.76806397]
[1731815861638,23.76806397,220.67,220.59,28.30116397]
[1731815863006,0.1,220.64,220.59,23.76806397]
[1731815863214,23.76806397,220.63,220.55,35.10306397]
[1731815863711,23.76806397,220.63,220.55,39.63716397]
[1731815865112,28.30056397,220.63,220.55,35.10306397]
[1731815865423,23.76806397,220.62,220.55,11.335]
[1731815865739,4.6325,220.63,220.51,23.76806397]
[1731815865937,28.40056397,220.63,220.56,23.76806397]
[1731815866351,28.40056397,220.63,220.55,23.76806397]
[1731815866826,28.40056397,220.63,220.55,28.30206397]
[1731815867134,28.40056397,220.63,220.55,23.76806397]
[1731815867333,23.76806397,220.61,220.55,23.76806397]
[1731815867527,0.1,220.75,220.6,23.76806397]
[1731815867838,23.86806397,220.71,220.63,23.76806397]
[1731815868043,0.1,220.7,220.63,23.76806397]
[1731815868519,23.76806397,220.71,220.63,23.76806397]
[1731815869048,28.29896397,220.71,220.63,23.76806397]
[1731815869219,0.1,220.7,220.63,23.76806397]
[1731815869417,23.76806397,220.67,220.6,11.3323]
[1731815869633,0.1,220.68,220.51,23.76806397]
[1731815869634,0.1,220.59,220.51,23.76806397]
[1731815869823,0.1,220.55,220.47,23.76806397]
[1731815870031,23.76806397,220.54,220.47,23.76806397]
[1731815871154,23.76806397,220.54,220.47,28.30366397]
[1731815871349,23.76806397,220.54,220.47,23.76806397]
[1731815871542,28.30246397,220.54,220.47,23.76806397]
[1731815872147,0.1,220.61,220.53,23.76806397]
[1731815872329,23.76806397,220.58,220.5,23.76806397]
[1731815872747,23.76806397,220.58,220.5,28.30316397]
[1731815872946,28.40166397,220.58,220.5,23.76806397]
[1731815873241,23.76806397,220.56,220.48,35.10676397]
[1731815873441,0.2,220.59,220.48,39.64226397]
[1731815873442,23.76806397,220.58,220.48,39.64226397]
[1731815873680,23.76806397,220.6,220.5,23.76806397]
[1731815873827,23.76806397,220.62,220.52,23.76806397]
[1731815874027,31.72036397,220.64,220.54,23.76806397]
[1731815874225,7.9523,220.64,220.58,23.76806397]
[1731815874940,7.9523,220.64,220.58,35.10176397]
[1731815875145,12.4846,220.64,220.58,35.10176397]
[1731815875853,0.1,220.63,220.54,23.76806397]
[1731815876028,0.1,220.61,220.53,11.336]
[1731815876350,12.5846,220.64,220.43,8.2637]
[1731815876351,23.76806397,220.56,220.48,35.10666397]
[1731815876848,23.76806397,220.58,220.5,23.76806397]
[1731815877441,23.76806397,220.6,220.52,23.76806397]
[1731815877937,28.30076397,220.62,220.52,23.76806397]
[1731815879119,23.76806397,220.62,220.54,23.76806397]
[1731815879325,31.72036397,220.64,220.54,23.76806397]
[1731815879538,7.9523,220.64,220.57,23.76806397]
[1731815879939,7.9523,220.64,220.59,23.76806397]
[1731815880126,20.5184,220.65,220.59,23.76806397]
[1731815880331,13.67,220.83,220.64,0.12549]
[1731815880332,2.78625,220.77,220.64,0.12549]
[1731815880647,2.78625,220.77,220.69,23.76806397]
[1731815880851,2.78625,220.77,220.7,6.54241121]
[1731815881212,2.78625,220.77,220.59,5.38835027]
[1731815881213,23.76806397,220.75,220.59,5.38835027]
[1731815881326,2.78625,220.77,220.71,23.76806397]
[1731815881529,2.78625,220.77,220.74,23.76806397]
[1731815881726,2.78625,220.77,220.75,0.12549]
[1731815882037,2.78625,220.77,220.76,24.11271859]
[1731815883148,2.78625,220.77,220.76,23.76806397]
[1731815883149,2.41005,220.77,220.76,23.76806397]
[1731815883453,2.41005,220.77,220.76,28.29786397]
[1731815883655,2.41005,220.77,220.76,28.39153859]
[1731815884351,0.52503484,220.77,220.76,28.39153859]
[1731815885066,0.52503484,220.77,220.76,28.29786397]
[1731815885366,0.52503484,220.77,220.76,28.64251859]
[1731815885949,0.52503484,220.77,220.76,29.54811531]
[1731815886258,0.52503484,220.77,220.76,28.42335397]
[1731815886971,0.52503484,220.77,220.76,28.29786397]
[1731815887143,0.52503484,220.77,220.76,28.39153859]
[1731815888268,0.52503484,220.77,220.76,28.64251859]
[1731815888562,0.52503484,220.77,220.76,28.42335397]
[1731815889055,0.39963484,220.77,220.76,28.52335397]
[1731815889862,0.5238408,220.81,220.8,23.98722859]
[1731815890666,0.5238408,220.81,220.8,28.51612859]
[1731815891163,0.5238408,220.81,220.8,28.64161859]
[1731815892370,0.5238408,220.81,220.8,28.74161859]
[1731815892543,0.5238408,220.81,220.8,28.64161859]
[1731815893052,0.5238408,220.81,220.8,28.58370766]
[1731815893245,0.03680756,220.87,220.84,0.34465462]
[1731815893466,0.03680756,220.87,220.84,24.11271859]
[1731815894256,0.03680756,220.87,220.84,28.64081859]
[1731815894750,0.03680756,220.87,220.84,34.53238803]
[1731815895970,0.03680756,220.87,220.84,46.06275226]
[1731815896851,0.03680756,220.87,220.84,46.16275226]
[1731815898688,0.03680756,220.87,220.84,46.06275226]
[1731815899054,2.66085,220.85,220.84,46.06275226]
[1731815900495,2.66085,220.85,220.84,46.16275226]
[1731815902303,2.66085,220.85,220.84,40.17118282]
[1731815902482,2.66085,220.85,220.84,46.32997448]
[1731815902681,2.66085,220.85,220.84,46.23629986]
[1731815904673,2.66085,220.85,220.84,116.33629986]
[1731815904881,2.66085,220.85,220.84,116.52997448]
[1731815905381,2.66085,220.85,220.84,116.42997448]
[1731815905586,2.66085,220.85,220.84,46.32997448]
[1731815905794,2.66085,220.85,220.84,46.42997448]
[1731815906089,2.66085,220.85,220.84,46.32997448]
[1731815906291,2.66085,220.85,220.84,46.42997448]
[1731815907272,2.66085,220.85,220.84,22.21725589]
[1731815907489,2.66085,220.85,220.84,33.75784757]
[1731815908281,2.66085,220.85,220.84,33.85152219]
[1731815908483,2.66085,220.85,220.84,33.97701219]
[1731815908795,2.66085,220.85,220.84,46.20448448]
[1731815909096,2.66085,220.85,220.84,46.30448448]
[1731815909298,2.66085,220.85,220.84,46.42997448]
[1731815909597,2.66085,220.85,220.84,116.42997448]
[1731815909779,2.66085,220.85,220.84,46.42997448]
[1731815909993,2.66085,220.85,220.84,46.32997448]
[1731815910290,2.66085,220.85,220.84,46.42997448]
[1731815911004,2.66085,220.85,220.84,22.66191051]
[1731815911298,2.66085,220.85,220.84,46.42997448]
[1731815911601,2.66085,220.85,220.84,47.43509091]
[1731815911903,2.66085,220.85,220.84,46.52997448]
[1731815912698,0.58748417,220.85,220.84,46.52997448]
[1731815912873,0.58748417,220.85,220.84,47.43506777]
[1731815913497,2.78625,220.94,220.85,0.09367462]
[1731815913697,2.78625,220.94,220.93,23.98722859]
[1731815913884,2.78625,220.94,220.93,36.59296866]
[1731815915405,2.78625,220.94,220.93,24.11271859]
[1731815916207,2.78625,220.94,220.93,28.41985397]
[1731815916601,2.78625,220.94,220.93,28.51352859]
[1731815917277,2.78625,220.94,220.93,28.63901859]
[1731815917503,2.78625,220.94,220.93,111.30532977]
[1731815917874,2.78625,220.94,220.93,41.10532977]
[1731815918478,2.78625,220.94,220.93,34.69376033]
[1731815918735,8.0,221.0,220.99,0.09367462]
[1731815918907,8.0,221.0,220.99,35.06247601]
[1731815919591,8.0,221.0,220.99,39.58747601]
[1731815920110,7.8378,221.0,220.99,44.76573183]
[1731815920407,0.5238408,221.03,221.01,70.29367462]
[1731815920586,2.78625,221.11,221.09,0.09367462]
[1731815920779,2.78625,221.11,221.1,93.96173859]
[1731815922287,2.53545,221.11,221.1,99.72325758]
[1731815922609,2.53545,221.11,221.1,99.82325758]
[1731815922788,2.53545,221.11,221.1,99.72325758]
[1731815923204,2.53545,221.11,221.1,75.95519361]
[1731815923692,2.53545,221.11,221.1,99.72325758]
[1731815924891,26.30351397,221.11,221.03,70.1]
[1731815925086,23.76806397,221.1,221.05,6.15548344]
[1731815925293,2.53545,221.11,221.07,23.76806397]
[1731815925610,2.53545,221.11,221.1,23.86173859]
[1731815925809,2.53545,221.11,221.1,30.33887319]
[1731815926194,2.53545,221.11,221.1,6.57080922]
[1731815926404,2.53545,221.11,221.1,30.68985319]
[1731815927086,2.53545,221.11,221.1,30.78985319]
[1731815928296,0.31780467,221.11,221.1,30.78985319]
[1731815928490,2.78625,221.19,221.17,0.21916462]
[1731815928687,2.78625,221.19,221.18,23.98722859]
[1731815929526,2.78625,221.19,221.14,93.76806397]
[1731815929810,2.78625,221.19,221.18,23.86173859]
[1731815929992,2.78625,221.19,221.18,23.98722859]
[1731815930191,2.78625,221.19,221.18,0.12549]
[1731815930388,2.78625,221.19,221.16,0.12549]
[1731815930588,2.78625,221.19,221.17,0.21916462]
[1731815930793,2.78625,221.19,221.18,0.12549]
[1731815931291,2.78625,221.19,221.18,23.89355397]
[1731815931501,2.78625,221.19,221.18,24.11271859]
[1731815932087,2.78625,221.19,221.18,30.58985319]
[1731815936815,2.78625,221.19,221.18,35.855529]
[1731815936998,0.5238408,221.25,221.24,94.11271859]
[1731815937323,0.5238408,221.25,221.24,31.20846635]
[1731815937695,0.5238408,221.25,221.24,31.30214097]
[1731815937908,0.5238408,221.25,221.24,36.97115011]
[1731815938109,0.5238408,221.25,221.24,37.87461529]
[1731815938414,2.78625,221.28,221.27,70.34465462]
[1731815938717,2.78625,221.28,221.27,104.11355552]
[1731815939016,2.78625,221.28,221.27,129.65580255]
[1731815939198,2.78625,221.28,221.27,135.19653187]
[1731815940604,2.78625,221.28,221.27,23.89355397]
[1731815940820,2.78625,221.28,221.27,23.76806397]
[1731815941423,2.78625,221.28,221.27,29.3984668]
[1731815941606,2.78625,221.28,221.27,65.30928232]
[1731815941806,2.78625,221.28,221.27,135.30928232]
[1731815942303,2.78625,221.28,221.27,135.56026232]
[1731815944507,2.78625,221.28,221.27,34.13263135]
[1731815944702,2.78625,221.28,221.27,93.76806397]
[1731815944919,2.78625,221.28,221.27,28.47689705]
[1731815945122,2.78625,221.28,221.27,23.76806397]
[1731815945311,2.78625,221.28,221.27,23.86173859]
[1731815945509,2.78625,221.28,221.27,93.86173859]
[1731815945699,2.78625,221.28,221.27,128.31699684]
[1731815946106,2.78625,221.28,221.27,128.56797684]
[1731815946304,2.78625,221.28,221.27,104.79991287]
[1731815946507,2.78625,221.28,221.27,104.89991287]
[1731815946709,2.78625,221.28,221.27,34.79991287]
[1731815946923,2.78625,221.28,221.27,128.56797684]
[1731815947112,2.78625,221.28,221.27,133.83552431]
[1731815947527,2.78625,221.28,221.27,133.73552431]
[1731815948318,0.63450015,221.28,221.27,133.73552431]
[1731815948712,0.63450015,221.28,221.27,39.96746034]
[1731815948913,0.63450015,221.28,221.27,34.45525825]
[1731815949339,0.63450015,221.28,221.15,70.0]
[1731815949624,23.76806397,221.27,221.2,23.76806397]
[1731815950011,0.63450015,221.28,221.26,23.76806397]
[1731815950217,0.63450015,221.28,221.21,11.15663872]
[1731815950421,0.63450015,221.28,221.26,6.26725009]
[1731815951539,0.63450015,221.28,221.15,70.1]
[1731815951540,21.3381,221.2,221.05,7.06672755]
[1731815951739,21.3381,221.2,220.98,0.1]
[1731815951740,14.69346008,221.12,220.98,70.0]
[1731815951914,14.69346008,221.12,221.06,14.69346008]
[1731815952120,21.3381,221.11,221.05,14.69346008]
[1731815952323,21.3381,221.11,221.1,14.69346008]
[1731815952647,0.1,221.08,220.99,2.05480939]
[1731815952817,0.2,221.08,221.02,4.56306859]
[1731815953433,0.2,221.1,221.07,14.69346008]
[1731815953613,0.2,221.1,221.09,14.69346008]
[1731815954542,0.1,221.1,221.09,14.69346008]
[1731815954856,0.1,221.16,221.1,0.09367462]
[1731815955019,0.1,221.11,221.1,4.8741321]
[1731815955336,0.1,221.11,221.05,38.4527]
[1731815955639,0.2,221.07,221.05,15.8334]
[1731815956015,0.1,221.09,221.05,15.8334]
[1731815956214,0.1,221.11,221.06,5.89004524]
[1731815956434,0.1,221.09,221.06,5.89004524]
[1731815956642,0.2,221.09,221.08,23.52830331]
[1731815956817,0.2,221.09,221.08,28.05150331]
[1731815957627,0.2,221.07,221.05,11.3096]
[1731815957830,23.52830331,221.06,221.05,11.3096]
[1731815958045,0.1,221.0,220.99,38.4626]
[1731815958339,0.1,221.03,220.99,66.9764719]
[1731815958636,0.1,221.03,221.0,0.09367462]
[1731815958820,0.1,221.03,221.02,23.52830331]
[1731815959020,0.1,221.03,221.02,28.05270331]
[1731815959233,0.1,221.03,221.02,39.36380331]
[1731815959431,30.0555,221.08,221.03,0.34465462]
[1731815959616,23.52830331,221.14,221.07,23.52830331]
[1731815959617,0.2,221.11,221.07,23.52830331]
[1731815959834,0.2,221.13,221.1,23.52830331]
[1731815960035,0.1,221.11,221.08,23.52830331]
[1731815960330,0.1,221.13,221.1,23.52830331]
[1731815960642,23.52830331,221.17,221.13,0.34465462]
[1731815960643,0.1,221.17,221.13,0.34465462]
[1731815960948,0.1,221.17,221.16,28.30088331]
[1731815961115,0.1,221.17,221.16,33.38012652]
[1731815961529,0.1,221.17,221.16,39.61848772]
[1731815961718,0.1,221.17,221.16,39.3993231]
[1731815962336,8.8174,221.24,221.17,0.34465462]
[1731815962652,8.8174,221.24,221.22,23.52830331]
[1731815962946,8.8174,221.24,221.23,6.2383612]
[1731815963131,8.8174,221.24,221.23,10.7584612]
[1731815963324,8.9174,221.24,221.23,10.7584612]
[1731815964321,8.9174,221.24,221.23,4.5201]
[1731815965027,8.9174,221.24,221.22,11.3009]
[1731815968515,23.52830331,221.27,221.23,30.01764451]
[1731815968516,0.2,221.27,221.23,30.01764451]
[1731815968716,0.2,221.27,221.26,23.52830331]
[1731815968925,0.63450015,221.28,221.27,0.34465462]
[1731815969130,0.73450015,221.28,221.27,23.87295793]
[1731815969441,24.26280346,221.28,221.27,11.23432786]
[1731815969623,24.26280346,221.28,221.27,4.5193]
[1731815970441,0.2,221.21,221.2,4.5207]
[1731815970627,0.2,221.21,221.2,28.04900331]
[1731815972124,0.1,221.24,221.21,0.09367462]
[1731815972324,0.2,221.24,221.23,23.52830331]
[1731815972542,0.2,221.21,221.2,20.44821215]
[1731815972752,0.2,221.21,221.2,15.8226]
[1731815973426,0.2,221.23,221.2,15.8226]
[1731815973641,0.2,221.26,221.22,23.52830331]
[1731815973844,0.2,221.26,221.21,0.09367462]
[1731815974146,0.1,221.24,221.21,0.34465462]
[1731815974356,0.2,221.24,221.21,0.34465462]
[1731815974650,0.1,221.21,221.2,38.55199]
[1731815974848,0.2,221.22,221.2,62.08029331]
[1731815975230,0.1,221.22,221.2,38.55199]
[1731815975429,0.1,221.24,221.23,4.64559]
[1731815975634,0.1,221.25,221.23,15.8205]
[1731815975824,0.1,221.25,221.24,23.52830331]
[1731815976251,0.1,221.24,221.23,15.8205]
[1731815976450,0.1,221.26,221.23,39.34880331]
[1731815976660,0.1,221.25,221.24,0.12549]
[1731815977025,0.1,221.33,221.28,0.12549]
[1731815977245,0.1,221.33,221.31,0.09367462]
[1731815977448,0.1,221.33,221.32,23.65379331]
[1731815977655,0.1,221.33,221.32,28.17209331]
[1731815978531,0.1,221.33,221.32,28.04660331]
[1731815983059,0.1,221.33,221.32,4.5183]
[1731815983661,0.2,221.31,221.29,23.52830331]
[1731815983840,0.2,221.27,221.26,15.8183]
[1731815984041,0.2,221.27,221.26,39.34660331]
[1731815987962,0.1,221.33,221.29,0.09367462]
[1731815988168,0.1,221.31,221.3,0.21916462]
[1731815988362,0.1,221.31,221.3,0.34465462]
[1731815988564,0.1,221.31,221.3,23.87295793]
[1731815989545,0.1,221.31,221.3,28.39165793]
[1731815991470,0.1,221.32,221.31,0.34465462]
[1731815991667,0.1,221.32,221.31,23.87295793]
[1731815994567,0.2,221.32,221.31,23.52830331]
[1731815994745,0.2,221.32,221.3,15.8155]
[1731815994949,22.7701,221.31,221.3,15.8155]
[1731815995149,0.2,221.26,221.25,28.04800331]
[1731815995352,0.1,221.26,221.25,28.04800331]
[1731815995566,0.2,221.26,221.25,28.04800331]
[1731815997779,0.1,221.28,221.26,0.09367462]
[1731815997965,0.1,221.28,221.27,23.74746793]
[1731815998485,0.2,221.28,221.27,28.04760331]
[1731815999448,0.1,221.23,221.2,22.6039]
[1731815999677,0.1,221.3,221.23,0.09367462]
[1731815999883,0.1,221.3,221.29,23.52830331]
[1731816000967,0.1,221.3,221.29,28.04720331]
[1731816001680,0.1,221.32,221.29,28.04720331]
[1731816001851,0.1,221.34,221.32,0.12549]
[1731816002050,2.78625,221.36,221.32,0.12549]
[1731816002051,2.78625,221.36,221.34,0.25098]
[1731816002252,2.78625,221.36,221.35,0.12549]
[1731816002467,2.78625,221.36,221.35,23.74746793]
[1731816002860,0.41775,221.36,221.35,23.87295793]
[1731816003159,0.41775,221.36,221.35,28.39065793]
[1731816003363,2950.0,221.4,221.36,0.34465462]
[1731816003571,2835.79713869,221.4,221.39,117.40126124]
[1731816003783,2745.76341709,221.4,221.39,133.86726413]
[1731816003956,2739.25929186,221.4,221.39,133.86726413]
[1731816004148,2739.25929186,221.4,221.39,16.73377324]
[1731816004354,2739.25929186,221.4,221.39,5.66252212]
[1731816004585,2739.25929186,221.4,221.39,127.81678145]
[1731816004878,2738.47429186,221.4,221.39,127.81678145]
[1731816005082,2731.90554632,221.4,221.39,137.25645564]
[1731816005273,2708.21538906,221.4,221.39,137.25645564]
[1731816005471,2632.11178532,221.4,221.39,153.18565564]
[1731816005684,2589.0257801,221.4,221.39,153.10877137]
[1731816005876,2584.3607851,221.4,221.39,153.10877137]
[1731816006075,2571.64386706,221.4,221.39,153.18565564]
[1731816006275,2393.47647248,221.4,221.39,137.25645564]